[Event "Titled Tuesday Blitz August 3 2021"]
[White "Gallegos Diaz, Carlos Alberto"]
[Black "Assaubayeva, Bibisara"]
[WhiteFideId "3900886"]
[BlackFideId "13708694"]
[WhiteElo "2362"]
[BlackElo "2232"]
[Result "0-1"]
[Round "01"]
[TimeControl "180+1"]
[Date "2021.08.03"]
[WhiteClock "0:00:04"]
[BlackClock "0:00:14"]

1. e4 {[%clk 0:02:59]}  c5 {[%clk 0:02:59]} 2. Nf3 {[%clk 0:02:57]}  d6 {[%clk 0:02:59]} 3. Bb5+ {[%clk 0:02:56]}  Nd7 {[%clk 0:02:58]} 4. O-O {[%clk 0:02:55]}  a6 {[%clk 0:02:58]} 5. Bxd7+ {[%clk 0:02:54]}  Bxd7 {[%clk 0:02:59]} 6. c3 {[%clk 0:02:52]}  Nf6 {[%clk 0:02:58]} 7. Re1 {[%clk 0:02:50]}  e6 {[%clk 0:02:53]} 8. d4 {[%clk 0:02:49]}  cxd4 {[%clk 0:02:54]} 9. cxd4 {[%clk 0:02:49]}  d5 {[%clk 0:02:54]} 10. exd5 {[%clk 0:02:42]}  Nxd5 {[%clk 0:02:53]} 11. Nc3 {[%clk 0:02:43]}  Bc6 {[%clk 0:02:44]} 12. Ne5 {[%clk 0:02:34]}  Be7 {[%clk 0:02:38]} 13. Nxc6 {[%clk 0:02:00]}  bxc6 {[%clk 0:02:38]} 14. Qg4 {[%clk 0:01:47]}  O-O {[%clk 0:02:35]} 15. Bh6 {[%clk 0:01:44]}  Bf6 {[%clk 0:02:34]} 16. Rad1 {[%clk 0:01:42]}  Kh8 {[%clk 0:02:30]} 17. Bc1 {[%clk 0:01:36]}  Rb8 {[%clk 0:02:24]} 18. Ne4 {[%clk 0:01:34]}  Be7 {[%clk 0:02:18]} 19. Qf3 {[%clk 0:01:04]}  Qb6 {[%clk 0:01:50]} 20. b3 {[%clk 0:01:00]}  f5 {[%clk 0:01:37]} 21. Nc5 {[%clk 0:00:41]}  Bxc5 {[%clk 0:01:27]} 22. dxc5 {[%clk 0:00:42]}  Qxc5 {[%clk 0:01:27]} 23. Rxe6 {[%clk 0:00:42]}  Rbe8 {[%clk 0:01:11]} 24. Rxe8 {[%clk 0:00:40]}  Rxe8 {[%clk 0:01:12]} 25. Qxf5 {[%clk 0:00:34]}  Rf8 {[%clk 0:01:02]} 26. Qd3 {[%clk 0:00:28]}  Qxf2+ {[%clk 0:00:56]} 27. Kh1 {[%clk 0:00:28]}  Nc3 {[%clk 0:00:54]} 28. Rg1 {[%clk 0:00:15]}  Ne2 {[%clk 0:00:35]} 29. Be3 {[%clk 0:00:15]}  Qf1 {[%clk 0:00:36]} 30. Qd6 {[%clk 0:00:08]}  Nxg1 {[%clk 0:00:35]} 31. Bxg1 {[%clk 0:00:06]}  h6 {[%clk 0:00:34]} 32. Qxc6 {[%clk 0:00:06]}  Qe2 {[%clk 0:00:30]} 33. Qc5 {[%clk 0:00:06]}  Rf1 {[%clk 0:00:26]} 34. h3 {[%clk 0:00:06]}  Qxa2 {[%clk 0:00:23]} 35. Qc8+ {[%clk 0:00:06]}  Kh7 {[%clk 0:00:23]} 36. Qc4 {[%clk 0:00:06]}  Qb1 {[%clk 0:00:23]} 37. Qd4 {[%clk 0:00:05]}  Qxb3 {[%clk 0:00:19]} 38. Kh2 {[%clk 0:00:05]}  Qd1 {[%clk 0:00:17]} 39. Qe4+ {[%clk 0:00:04]}  Kg8 {[%clk 0:00:17]} 40. Qe8+ {[%clk 0:00:04]}  Rf8 {[%clk 0:00:18]} 41. Qe6+ {[%clk 0:00:04]}  Kh8 {[%clk 0:00:18]} 42. Be3 {[%clk 0:00:04]}  Qe2 {[%clk 0:00:14]} 43. Qe7 {[%clk 0:00:04]}  Rg8 {[%clk 0:00:12]} 44. Bc5 {[%clk 0:00:03]}  Qxe7 {[%clk 0:00:12]} 45. Bxe7 {[%clk 0:00:04]}  a5 {[%clk 0:00:12]} 46. Ba3 {[%clk 0:00:04]}  a4 {[%clk 0:00:13]} 47. g4 {[%clk 0:00:05]}  Rc8 {[%clk 0:00:14]} 48. h4 {[%clk 0:00:05]}  Rc2+ {[%clk 0:00:14]} 49. Kg1 {[%clk 0:00:04]}  Rc3 {[%clk 0:00:14]} 0-1


[Site "https://www.chess.com"]

[Event "Titled Tuesday Blitz August 3 2021"]
[White "Garv Gaur"]
[Black "Petriashvili, Nikoloz"]
[WhiteFideId "45030839"]
[BlackFideId "13611216"]
[WhiteElo "1950"]
[BlackElo "2430"]
[Result "0-1"]
[Round "01"]
[TimeControl "180+1"]
[Date "2021.08.03"]
[WhiteClock "0:01:37"]
[BlackClock "0:02:04"]

1. d4 {[%clk 0:03:00]}  Nf6 {[%clk 0:03:00]} 2. Nf3 {[%clk 0:03:01]}  g6 {[%clk 0:03:00]} 3. c4 {[%clk 0:03:02]}  Bg7 {[%clk 0:03:01]} 4. g3 {[%clk 0:03:02]}  O-O {[%clk 0:03:01]} 5. Bg2 {[%clk 0:03:03]}  c5 {[%clk 0:03:01]} 6. d5 {[%clk 0:03:03]}  d6 {[%clk 0:03:01]} 7. O-O {[%clk 0:03:03]}  e6 {[%clk 0:03:00]} 8. Nc3 {[%clk 0:03:03]}  exd5 {[%clk 0:03:01]} 9. cxd5 {[%clk 0:03:04]}  Re8 {[%clk 0:03:00]} 10. Bf4 {[%clk 0:03:02]}  Nh5 {[%clk 0:02:52]} 11. Bg5 {[%clk 0:02:59]}  Qb6 {[%clk 0:02:45]} 12. Qc1 {[%clk 0:02:45]}  Nd7 {[%clk 0:02:44]} 13. Nd2 {[%clk 0:02:43]}  h6 {[%clk 0:02:41]} 14. Be3 {[%clk 0:02:40]}  Rxe3 {[%clk 0:02:40]} 15. fxe3 {[%clk 0:02:40]}  Ne5 {[%clk 0:02:39]} 16. Nf3 {[%clk 0:02:35]}  Bd7 {[%clk 0:02:21]} 17. Nxe5 {[%clk 0:02:32]}  Bxe5 {[%clk 0:02:21]} 18. Qc2 {[%clk 0:02:32]}  Re8 {[%clk 0:02:17]} 19. e4 {[%clk 0:02:30]}  Nf6 {[%clk 0:02:10]} 20. Rad1 {[%clk 0:02:17]}  Ng4 {[%clk 0:02:09]} 21. Rd3 {[%clk 0:01:43]}  c4+ {[%clk 0:02:08]} 22. Kh1 {[%clk 0:01:39]}  cxd3 {[%clk 0:02:07]} 23. exd3 {[%clk 0:01:40]}  Ne3 {[%clk 0:02:06]} 24. Qf2 {[%clk 0:01:35]}  Nxf1 {[%clk 0:02:06]} 25. Qxb6 {[%clk 0:01:36]}  Nxg3+ {[%clk 0:02:04]} 26. hxg3 {[%clk 0:01:36]}  axb6 {[%clk 0:02:04]} 27. Ne2 {[%clk 0:01:37]}  Bxb2 {[%clk 0:02:04]} 0-1


[Site "https://www.chess.com"]

[Event "Titled Tuesday Blitz August 3 2021"]
[White "Grachev, Boris"]
[Black "Jian, Alex"]
[WhiteFideId "4129199"]
[BlackFideId "30901022"]
[WhiteElo "2595"]
[BlackElo "2111"]
[Result "1-0"]
[Round "01"]
[TimeControl "180+1"]
[Date "2021.08.03"]
[WhiteClock "0:01:09"]
[BlackClock "0:00:09"]

1. d4 {[%clk 0:03:00]}  Nf6 {[%clk 0:02:51]} 2. Bf4 {[%clk 0:03:00]}  e6 {[%clk 0:02:51]} 3. e3 {[%clk 0:03:01]}  c5 {[%clk 0:02:52]} 4. c3 {[%clk 0:03:01]}  b6 {[%clk 0:02:52]} 5. Nf3 {[%clk 0:02:59]}  Bb7 {[%clk 0:02:51]} 6. h3 {[%clk 0:02:59]}  Be7 {[%clk 0:02:51]} 7. Nbd2 {[%clk 0:02:58]}  O-O {[%clk 0:02:51]} 8. Bd3 {[%clk 0:02:58]}  Nc6 {[%clk 0:02:51]} 9. O-O {[%clk 0:02:58]}  Rc8 {[%clk 0:02:50]} 10. Qe2 {[%clk 0:02:55]}  d5 {[%clk 0:02:48]} 11. Rad1 {[%clk 0:02:51]}  Bd6 {[%clk 0:02:48]} 12. Bxd6 {[%clk 0:02:47]}  Qxd6 {[%clk 0:02:49]} 13. e4 {[%clk 0:02:48]}  dxe4 {[%clk 0:02:42]} 14. Nxe4 {[%clk 0:02:49]}  Nxe4 {[%clk 0:02:42]} 15. Bxe4 {[%clk 0:02:44]}  cxd4 {[%clk 0:02:24]} 16. Nxd4 {[%clk 0:02:44]}  Nxd4 {[%clk 0:02:22]} 17. Rxd4 {[%clk 0:02:45]}  Qe7 {[%clk 0:02:20]} 18. Bxb7 {[%clk 0:02:41]}  Qxb7 {[%clk 0:02:19]} 19. Rfd1 {[%clk 0:02:41]}  Qc6 {[%clk 0:02:00]} 20. Rd6 {[%clk 0:02:36]}  Qa4 {[%clk 0:01:52]} 21. b3 {[%clk 0:02:30]}  Qa3 {[%clk 0:01:17]} 22. c4 {[%clk 0:02:29]}  h6 {[%clk 0:01:06]} 23. R1d2 {[%clk 0:02:23]}  Qc1+ {[%clk 0:01:03]} 24. Kh2 {[%clk 0:02:20]}  Rc5 {[%clk 0:00:57]} 25. Qe3 {[%clk 0:02:04]}  Qb1 {[%clk 0:00:47]} 26. Rd7 {[%clk 0:01:50]}  Ra5 {[%clk 0:00:44]} 27. a4 {[%clk 0:01:45]}  Qf5 {[%clk 0:00:28]} 28. Qd3 {[%clk 0:01:39]}  Qf4+ {[%clk 0:00:26]} 29. g3 {[%clk 0:01:36]}  Qe5 {[%clk 0:00:22]} 30. Qf3 {[%clk 0:01:31]}  Qa1 {[%clk 0:00:16]} 31. Rxf7 {[%clk 0:01:16]}  Rxf7 {[%clk 0:00:11]} 32. Rd8+ {[%clk 0:01:15]}  Kh7 {[%clk 0:00:11]} 33. Qxf7 {[%clk 0:01:14]}  Rf5 {[%clk 0:00:10]} 34. Qg8+ {[%clk 0:01:14]}  Kg6 {[%clk 0:00:10]} 35. Qxe6+ {[%clk 0:01:12]}  Rf6 {[%clk 0:00:10]} 36. Qe4+ {[%clk 0:01:09]}  Kf7 {[%clk 0:00:09]} 37. Qe8# {[%clk 0:01:09]} 1-0


[Site "https://www.chess.com"]

[Event "Titled Tuesday Blitz August 3 2021"]
[White "Grinblat, Dmitry"]
[Black "Abdusattorov, Nodirbek"]
[WhiteFideId "4163257"]
[BlackFideId "14204118"]
[WhiteElo "2477"]
[BlackElo "2662"]
[Result "0-1"]
[Round "01"]
[TimeControl "180+1"]
[Date "2021.08.03"]
[WhiteClock "0:00:41"]
[BlackClock "0:01:04"]

1. d4 {[%clk 0:03:00]}  Nf6 {[%clk 0:02:58]} 2. Nf3 {[%clk 0:03:01]}  c5 {[%clk 0:02:58]} 3. c4 {[%clk 0:03:01]}  e6 {[%clk 0:02:57]} 4. Nc3 {[%clk 0:03:01]}  cxd4 {[%clk 0:02:56]} 5. Nxd4 {[%clk 0:03:02]}  Nc6 {[%clk 0:02:57]} 6. g3 {[%clk 0:02:58]}  Qb6 {[%clk 0:02:55]} 7. Nc2 {[%clk 0:02:51]}  Ng4 {[%clk 0:02:39]} 8. e3 {[%clk 0:02:48]}  Nge5 {[%clk 0:02:38]} 9. Be2 {[%clk 0:02:42]}  Be7 {[%clk 0:02:37]} 10. O-O {[%clk 0:02:42]}  O-O {[%clk 0:02:37]} 11. b3 {[%clk 0:02:36]}  d6 {[%clk 0:02:35]} 12. Bb2 {[%clk 0:02:27]}  a6 {[%clk 0:02:35]} 13. f4 {[%clk 0:02:27]}  Ng6 {[%clk 0:02:27]} 14. Kh1 {[%clk 0:02:23]}  Bd7 {[%clk 0:02:18]} 15. Bf3 {[%clk 0:02:20]}  Rfd8 {[%clk 0:02:13]} 16. Qe2 {[%clk 0:02:18]}  Rac8 {[%clk 0:02:12]} 17. e4 {[%clk 0:02:08]}  Bf6 {[%clk 0:02:09]} 18. Rfd1 {[%clk 0:01:58]}  Qc7 {[%clk 0:02:03]} 19. Rac1 {[%clk 0:01:54]}  Qb8 {[%clk 0:01:59]} 20. h4 {[%clk 0:01:43]}  b5 {[%clk 0:01:58]} 21. h5 {[%clk 0:01:34]}  Nf8 {[%clk 0:01:47]} 22. cxb5 {[%clk 0:01:28]}  axb5 {[%clk 0:01:48]} 23. b4 {[%clk 0:01:22]}  h6 {[%clk 0:01:30]} 24. a3 {[%clk 0:01:21]}  Be8 {[%clk 0:01:28]} 25. Qf2 {[%clk 0:01:16]}  Nd7 {[%clk 0:01:27]} 26. e5 {[%clk 0:01:08]}  dxe5 {[%clk 0:01:25]} 27. Ne4 {[%clk 0:01:08]}  Be7 {[%clk 0:01:25]} 28. Ne3 {[%clk 0:00:59]}  exf4 {[%clk 0:01:11]} 29. gxf4 {[%clk 0:00:56]}  Qxf4 {[%clk 0:01:11]} 30. Rg1 {[%clk 0:00:55]}  Nde5 {[%clk 0:01:11]} 31. Rcf1 {[%clk 0:00:47]}  Nd4 {[%clk 0:01:06]} 32. Ng2 {[%clk 0:00:41]}  Qxf3 {[%clk 0:01:04]} 0-1


[Site "https://www.chess.com"]

[Event "Titled Tuesday Blitz August 3 2021"]
[White "Hansen, Eric"]
[Black "Palchuk, Andrii"]
[WhiteFideId "2606771"]
[BlackFideId "14176688"]
[WhiteElo "2568"]
[BlackElo "2284"]
[Result "1-0"]
[Round "01"]
[TimeControl "180+1"]
[Date "2021.08.03"]
[WhiteClock "0:00:24"]
[BlackClock "0:00:06"]

1. Nf3 {[%clk 0:03:00]}  Nf6 {[%clk 0:03:00]} 2. b3 {[%clk 0:03:00]}  g6 {[%clk 0:03:00]} 3. Bb2 {[%clk 0:03:00]}  Bg7 {[%clk 0:03:00]} 4. c4 {[%clk 0:03:01]}  O-O {[%clk 0:03:00]} 5. g3 {[%clk 0:03:01]}  c6 {[%clk 0:03:00]} 6. Bg2 {[%clk 0:03:02]}  d5 {[%clk 0:03:00]} 7. O-O {[%clk 0:03:02]}  Bf5 {[%clk 0:02:56]} 8. d3 {[%clk 0:03:02]}  Re8 {[%clk 0:02:46]} 9. Nbd2 {[%clk 0:02:59]}  Qc8 {[%clk 0:02:35]} 10. Re1 {[%clk 0:02:56]}  Bh3 {[%clk 0:02:35]} 11. Bh1 {[%clk 0:02:37]}  h6 {[%clk 0:02:13]} 12. Qc2 {[%clk 0:02:35]}  Nbd7 {[%clk 0:02:08]} 13. Rac1 {[%clk 0:02:32]}  e5 {[%clk 0:01:54]} 14. cxd5 {[%clk 0:02:29]}  Nxd5 {[%clk 0:01:49]} 15. a3 {[%clk 0:02:28]}  Qd8 {[%clk 0:01:34]} 16. Nc4 {[%clk 0:02:27]}  Qe7 {[%clk 0:01:29]} 17. e4 {[%clk 0:02:26]}  N5b6 {[%clk 0:01:28]} 18. Na5 {[%clk 0:02:24]}  Rab8 {[%clk 0:01:27]} 19. b4 {[%clk 0:02:24]}  Nf8 {[%clk 0:01:20]} 20. d4 {[%clk 0:02:21]}  exd4 {[%clk 0:01:15]} 21. Bxd4 {[%clk 0:02:19]}  Ne6 {[%clk 0:01:10]} 22. Bxg7 {[%clk 0:02:17]}  Kxg7 {[%clk 0:01:11]} 23. Qc3+ {[%clk 0:02:11]}  Qf6 {[%clk 0:01:10]} 24. Qxf6+ {[%clk 0:02:09]}  Kxf6 {[%clk 0:01:11]} 25. Bg2 {[%clk 0:01:58]}  Bxg2 {[%clk 0:01:09]} 26. Kxg2 {[%clk 0:01:59]}  Red8 {[%clk 0:00:56]} 27. Red1 {[%clk 0:01:48]}  Rxd1 {[%clk 0:00:52]} 28. Rxd1 {[%clk 0:01:49]}  Rd8 {[%clk 0:00:45]} 29. Rd2 {[%clk 0:01:49]}  Rxd2 {[%clk 0:00:38]} 30. Nxd2 {[%clk 0:01:49]}  Nd8 {[%clk 0:00:38]} 31. f4 {[%clk 0:01:50]}  Ke6 {[%clk 0:00:37]} 32. Kf2 {[%clk 0:01:49]}  Nd7 {[%clk 0:00:35]} 33. Ke3 {[%clk 0:01:48]}  b6 {[%clk 0:00:36]} 34. Nab3 {[%clk 0:01:48]}  Kd6 {[%clk 0:00:30]} 35. Nc4+ {[%clk 0:01:45]}  Kc7 {[%clk 0:00:29]} 36. e5 {[%clk 0:01:41]}  Ne6 {[%clk 0:00:29]} 37. Nd6 {[%clk 0:01:38]}  f6 {[%clk 0:00:21]} 38. Ne8+ {[%clk 0:01:37]}  Kd8 {[%clk 0:00:20]} 39. Nxf6 {[%clk 0:01:38]}  Nxf6 {[%clk 0:00:19]} 40. exf6 {[%clk 0:01:39]}  Ke8 {[%clk 0:00:19]} 41. Ke4 {[%clk 0:01:38]}  Kf7 {[%clk 0:00:18]} 42. Ke5 {[%clk 0:01:38]}  Nc7 {[%clk 0:00:18]} 43. g4 {[%clk 0:01:17]}  Nb5 {[%clk 0:00:14]} 44. g5 {[%clk 0:01:17]}  hxg5 {[%clk 0:00:12]} 45. fxg5 {[%clk 0:01:18]}  Nxa3 {[%clk 0:00:13]} 46. Nd4 {[%clk 0:00:48]}  Nc4+ {[%clk 0:00:11]} 47. Ke4 {[%clk 0:00:46]}  Nd6+ {[%clk 0:00:11]} 48. Kf4 {[%clk 0:00:42]}  c5 {[%clk 0:00:11]} 49. bxc5 {[%clk 0:00:43]}  bxc5 {[%clk 0:00:12]} 50. Nc6 {[%clk 0:00:44]}  a6 {[%clk 0:00:11]} 51. Ne5+ {[%clk 0:00:42]}  Kg8 {[%clk 0:00:10]} 52. Nxg6 {[%clk 0:00:40]}  c4 {[%clk 0:00:10]} 53. Ne5 {[%clk 0:00:32]}  c3 {[%clk 0:00:10]} 54. g6 {[%clk 0:00:28]}  c2 {[%clk 0:00:06]} 55. Nd3 {[%clk 0:00:29]}  Nc4 {[%clk 0:00:06]} 56. h4 {[%clk 0:00:23]}  Nb2 {[%clk 0:00:05]} 57. Nc1 {[%clk 0:00:23]}  a5 {[%clk 0:00:04]} 58. h5 {[%clk 0:00:24]}  a4 {[%clk 0:00:03]} 59. h6 {[%clk 0:00:24]}  a3 {[%clk 0:00:03]} 60. f7+ {[%clk 0:00:23]}  Kf8 {[%clk 0:00:03]} 61. h7 {[%clk 0:00:23]}  Kg7 {[%clk 0:00:03]} 62. h8=Q+ {[%clk 0:00:23]}  Kxg6 {[%clk 0:00:04]} 63. f8=Q {[%clk 0:00:23]}  Nd3+ {[%clk 0:00:05]} 64. Nxd3 {[%clk 0:00:23]}  c1=Q+ {[%clk 0:00:06]} 65. Nxc1 {[%clk 0:00:23]}  a2 {[%clk 0:00:06]} 66. Qf5# {[%clk 0:00:24]} 1-0


[Site "https://www.chess.com"]

[Event "Titled Tuesday Blitz August 3 2021"]
[White "Ilyasli, Ughur"]
[Black "Svane, Rasmus"]
[WhiteFideId "13416197"]
[BlackFideId "4657101"]
[WhiteElo "2051"]
[BlackElo "2669"]
[Result "1/2-1/2"]
[Round "01"]
[TimeControl "180+1"]
[Date "2021.08.03"]
[WhiteClock "0:00:05"]
[BlackClock "0:00:07"]

1. e4 {[%clk 0:03:00]}  c6 {[%clk 0:03:00]} 2. Ne2 {[%clk 0:03:00]}  d5 {[%clk 0:03:01]} 3. e5 {[%clk 0:03:01]}  d4 {[%clk 0:03:00]} 4. Nf4 {[%clk 0:02:57]}  c5 {[%clk 0:02:58]} 5. e6 {[%clk 0:02:51]}  Bxe6 {[%clk 0:02:52]} 6. Nxe6 {[%clk 0:02:50]}  fxe6 {[%clk 0:02:53]} 7. f4 {[%clk 0:02:47]}  Qd5 {[%clk 0:02:45]} 8. Be2 {[%clk 0:02:44]}  Nc6 {[%clk 0:02:28]} 9. Bf3 {[%clk 0:02:42]}  Qd6 {[%clk 0:02:25]} 10. O-O {[%clk 0:02:40]}  Nf6 {[%clk 0:02:23]} 11. Na3 {[%clk 0:02:36]}  g6 {[%clk 0:02:16]} 12. Nc4 {[%clk 0:02:30]}  Qd7 {[%clk 0:02:17]} 13. Qe2 {[%clk 0:02:15]}  Bh6 {[%clk 0:02:13]} 14. d3 {[%clk 0:02:10]}  O-O {[%clk 0:01:58]} 15. Bd2 {[%clk 0:01:56]}  Nd5 {[%clk 0:01:54]} 16. g3 {[%clk 0:01:52]}  b5 {[%clk 0:01:54]} 17. Ne5 {[%clk 0:01:43]}  Nxe5 {[%clk 0:01:52]} 18. Qxe5 {[%clk 0:01:44]}  Bg7 {[%clk 0:01:51]} 19. Qe4 {[%clk 0:01:42]}  b4 {[%clk 0:01:28]} 20. Rae1 {[%clk 0:01:31]}  Ne3 {[%clk 0:01:28]} 21. Bxe3 {[%clk 0:01:26]}  dxe3 {[%clk 0:01:28]} 22. Kg2 {[%clk 0:01:24]}  Bd4 {[%clk 0:01:08]} 23. c3 {[%clk 0:01:24]}  bxc3 {[%clk 0:01:09]} 24. bxc3 {[%clk 0:01:25]}  Bxc3 {[%clk 0:01:10]} 25. Rxe3 {[%clk 0:01:25]}  Rab8 {[%clk 0:01:10]} 26. Qxe6+ {[%clk 0:01:18]}  Qxe6 {[%clk 0:01:11]} 27. Rxe6 {[%clk 0:01:18]}  Rb2+ {[%clk 0:01:08]} 28. Rf2 {[%clk 0:01:17]}  Rxf2+ {[%clk 0:00:41]} 29. Kxf2 {[%clk 0:01:17]}  Kf7 {[%clk 0:00:41]} 30. Ra6 {[%clk 0:01:17]}  Rb8 {[%clk 0:00:41]} 31. Rxa7 {[%clk 0:01:10]}  Bd4+ {[%clk 0:00:41]} 32. Ke2 {[%clk 0:00:58]}  Rb2+ {[%clk 0:00:40]} 33. Kd1 {[%clk 0:00:55]}  Rxh2 {[%clk 0:00:29]} 34. a4 {[%clk 0:00:51]}  Be3 {[%clk 0:00:23]} 35. Bd5+ {[%clk 0:00:45]}  Kf8 {[%clk 0:00:22]} 36. Bc4 {[%clk 0:00:44]}  Rd2+ {[%clk 0:00:15]} 37. Ke1 {[%clk 0:00:44]}  Rg2 {[%clk 0:00:15]} 38. a5 {[%clk 0:00:42]}  Rxg3 {[%clk 0:00:08]} 39. a6 {[%clk 0:00:40]}  Rg1+ {[%clk 0:00:09]} 40. Ke2 {[%clk 0:00:40]}  Bxf4 {[%clk 0:00:09]} 41. Ra8+ {[%clk 0:00:38]}  Kg7 {[%clk 0:00:10]} 42. a7 {[%clk 0:00:38]}  Ra1 {[%clk 0:00:10]} 43. Rg8+ {[%clk 0:00:38]}  Kf6 {[%clk 0:00:08]} 44. a8=Q {[%clk 0:00:39]}  Rxa8 {[%clk 0:00:08]} 45. Rxa8 {[%clk 0:00:40]}  h5 {[%clk 0:00:09]} 46. Kf3 {[%clk 0:00:39]}  Bd6 {[%clk 0:00:08]} 47. Rg8 {[%clk 0:00:35]}  g5 {[%clk 0:00:08]} 48. Rf8+ {[%clk 0:00:32]}  Ke5 {[%clk 0:00:08]} 49. Bf7 {[%clk 0:00:30]}  h4 {[%clk 0:00:05]} 50. Bh5 {[%clk 0:00:30]}  Kd4 {[%clk 0:00:04]} 51. Bg6 {[%clk 0:00:28]}  h3 {[%clk 0:00:04]} 52. Rh8 {[%clk 0:00:27]}  h2 {[%clk 0:00:05]} 53. Kg4 {[%clk 0:00:24]}  Bf4 {[%clk 0:00:05]} 54. Rd8+ {[%clk 0:00:23]}  Ke3 {[%clk 0:00:05]} 55. Rh8 {[%clk 0:00:17]}  e5 {[%clk 0:00:06]} 56. Rh3+ {[%clk 0:00:10]}  Kd4 {[%clk 0:00:06]} 57. Bf5 {[%clk 0:00:08]}  e4 {[%clk 0:00:05]} 58. dxe4 {[%clk 0:00:06]}  c4 {[%clk 0:00:05]} 59. e5 {[%clk 0:00:06]}  Kxe5 {[%clk 0:00:06]} 60. Bc2 {[%clk 0:00:05]}  Kd4 {[%clk 0:00:06]} 61. Bf5 {[%clk 0:00:05]}  c3 {[%clk 0:00:07]} 62. Bc2 {[%clk 0:00:05]}  Kc4 {[%clk 0:00:07]} 63. Rh5 {[%clk 0:00:04]}  Kb4 {[%clk 0:00:06]} 64. Rh3 {[%clk 0:00:05]}  Kc4 {[%clk 0:00:06]} 65. Rh5 {[%clk 0:00:05]}  Kb5 {[%clk 0:00:05]} 66. Rh7 {[%clk 0:00:05]}  Kb4 {[%clk 0:00:06]} 67. Rb7+ {[%clk 0:00:05]}  Kc5 {[%clk 0:00:06]} 68. Rh7 {[%clk 0:00:06]}  Kd4 {[%clk 0:00:07]} 69. Rh3 {[%clk 0:00:06]}  Be3 {[%clk 0:00:07]} 70. Kf3 {[%clk 0:00:04]}  Bf4 {[%clk 0:00:07]} 71. Kg4 {[%clk 0:00:05]} 1/2-1/2


[Site "https://www.chess.com"]

[Event "Titled Tuesday Blitz August 3 2021"]
[White "Jacobson, Brandon"]
[Black "Kotepalli, Sai Nirupama"]
[WhiteFideId "30901561"]
[BlackFideId "5039444"]
[WhiteElo "2362"]
[BlackElo "2454"]
[Result "1-0"]
[Round "01"]
[TimeControl "180+1"]
[Date "2021.08.03"]
[WhiteClock "0:01:37"]
[BlackClock "0:00:35"]

1. d4 {[%clk 0:03:00]}  g6 {[%clk 0:02:59]} 2. c4 {[%clk 0:03:01]}  Bg7 {[%clk 0:02:55]} 3. e4 {[%clk 0:03:01]}  d6 {[%clk 0:02:53]} 4. Nc3 {[%clk 0:03:02]}  Nf6 {[%clk 0:02:52]} 5. Nf3 {[%clk 0:03:01]}  O-O {[%clk 0:02:50]} 6. Be2 {[%clk 0:03:01]}  a6 {[%clk 0:02:46]} 7. O-O {[%clk 0:03:02]}  b5 {[%clk 0:02:45]} 8. e5 {[%clk 0:02:53]}  dxe5 {[%clk 0:02:42]} 9. dxe5 {[%clk 0:02:54]}  Qxd1 {[%clk 0:02:31]} 10. Rxd1 {[%clk 0:02:55]}  Nfd7 {[%clk 0:02:26]} 11. e6 {[%clk 0:02:48]}  fxe6 {[%clk 0:02:21]} 12. cxb5 {[%clk 0:02:48]}  axb5 {[%clk 0:02:17]} 13. Nxb5 {[%clk 0:02:48]}  Ba6 {[%clk 0:02:10]} 14. Bf1 {[%clk 0:02:40]}  Bxb5 {[%clk 0:02:02]} 15. Bxb5 {[%clk 0:02:41]}  Nb6 {[%clk 0:01:51]} 16. Ng5 {[%clk 0:02:26]}  c6 {[%clk 0:01:38]} 17. Bf1 {[%clk 0:02:23]}  Rf6 {[%clk 0:01:26]} 18. Rd8+ {[%clk 0:02:20]}  Bf8 {[%clk 0:01:24]} 19. Be3 {[%clk 0:02:20]}  N8d7 {[%clk 0:01:20]} 20. Rxa8 {[%clk 0:02:18]}  Nxa8 {[%clk 0:01:19]} 21. Rc1 {[%clk 0:02:17]}  e5 {[%clk 0:01:13]} 22. Bc4+ {[%clk 0:02:15]}  Kh8 {[%clk 0:01:08]} 23. Ne6 {[%clk 0:02:16]}  Nab6 {[%clk 0:01:04]} 24. Bb3 {[%clk 0:02:16]}  Nd5 {[%clk 0:00:57]} 25. Nxf8 {[%clk 0:02:07]}  Nxf8 {[%clk 0:00:56]} 26. Bc5 {[%clk 0:02:07]}  Rf7 {[%clk 0:00:52]} 27. Ba4 {[%clk 0:02:00]}  Rf6 {[%clk 0:00:52]} 28. g3 {[%clk 0:01:54]}  Kg7 {[%clk 0:00:50]} 29. Ba3 {[%clk 0:01:51]}  Ne6 {[%clk 0:00:47]} 30. Rxc6 {[%clk 0:01:49]}  Nd4 {[%clk 0:00:46]} 31. Rxf6 {[%clk 0:01:48]}  exf6 {[%clk 0:00:47]} 32. Bc5 {[%clk 0:01:44]}  Ne6 {[%clk 0:00:45]} 33. Ba7 {[%clk 0:01:42]}  Ndc7 {[%clk 0:00:43]} 34. b4 {[%clk 0:01:40]}  Kf7 {[%clk 0:00:43]} 35. b5 {[%clk 0:01:40]}  Ke7 {[%clk 0:00:42]} 36. b6 {[%clk 0:01:40]}  Na6 {[%clk 0:00:42]} 37. Bb5 {[%clk 0:01:38]}  Nac5 {[%clk 0:00:41]} 38. a4 {[%clk 0:01:36]}  Kd6 {[%clk 0:00:40]} 39. a5 {[%clk 0:01:36]}  Nd8 {[%clk 0:00:38]} 40. a6 {[%clk 0:01:35]}  f5 {[%clk 0:00:36]} 41. Bb8+ {[%clk 0:01:36]}  Kd5 {[%clk 0:00:35]} 42. a7 {[%clk 0:01:37]} 1-0


[Site "https://www.chess.com"]

[Event "Titled Tuesday Blitz August 3 2021"]
[White "Karacsonyi, Gellert"]
[Black "Zapata Arbelaez, Estiven"]
[WhiteFideId "764620"]
[BlackFideId "4406311"]
[WhiteElo "2192"]
[BlackElo "2067"]
[Result "1-0"]
[Round "01"]
[TimeControl "180+1"]
[Date "2021.08.03"]
[WhiteClock "0:00:40"]
[BlackClock "0:00:01"]

1. e4 {[%clk 0:03:00]}  e5 {[%clk 0:02:59]} 2. Nf3 {[%clk 0:03:01]}  Nc6 {[%clk 0:02:58]} 3. Bb5 {[%clk 0:03:01]}  a6 {[%clk 0:02:55]} 4. Bxc6 {[%clk 0:03:01]}  dxc6 {[%clk 0:02:55]} 5. O-O {[%clk 0:03:02]}  f6 {[%clk 0:02:55]} 6. d4 {[%clk 0:03:02]}  exd4 {[%clk 0:02:53]} 7. Nxd4 {[%clk 0:03:03]}  Bd6 {[%clk 0:02:53]} 8. Be3 {[%clk 0:02:57]}  Ne7 {[%clk 0:02:45]} 9. Nd2 {[%clk 0:02:57]}  O-O {[%clk 0:02:44]} 10. Nc4 {[%clk 0:02:57]}  b5 {[%clk 0:02:02]} 11. Nxd6 {[%clk 0:02:56]}  cxd6 {[%clk 0:02:02]} 12. Qf3 {[%clk 0:02:53]}  Qc7 {[%clk 0:01:51]} 13. Rad1 {[%clk 0:02:51]}  d5 {[%clk 0:01:05]} 14. Bf4 {[%clk 0:02:42]}  Qb7 {[%clk 0:01:02]} 15. Rfe1 {[%clk 0:02:36]}  c5 {[%clk 0:00:45]} 16. Nb3 {[%clk 0:02:34]}  c4 {[%clk 0:00:29]} 17. Nc5 {[%clk 0:02:29]}  Qc6 {[%clk 0:00:29]} 18. exd5 {[%clk 0:02:29]}  Qxc5 {[%clk 0:00:29]} 19. d6 {[%clk 0:02:27]}  Nc6 {[%clk 0:00:28]} 20. d7 {[%clk 0:02:27]}  Bxd7 {[%clk 0:00:28]} 21. Rxd7 {[%clk 0:02:26]}  Rfe8 {[%clk 0:00:24]} 22. Red1 {[%clk 0:01:56]}  Ne5 {[%clk 0:00:24]} 23. Bxe5 {[%clk 0:01:47]}  Qxe5 {[%clk 0:00:24]} 24. h3 {[%clk 0:01:41]}  Rac8 {[%clk 0:00:24]} 25. Qb7 {[%clk 0:01:28]}  f5 {[%clk 0:00:24]} 26. R1d5 {[%clk 0:01:16]}  Qxb2 {[%clk 0:00:14]} 27. Rxf5 {[%clk 0:01:13]}  Rf8 {[%clk 0:00:13]} 28. Rdf7 {[%clk 0:00:42]}  Qb1+ {[%clk 0:00:10]} 29. Kh2 {[%clk 0:00:41]}  Qa1 {[%clk 0:00:01]} 30. Rxf8+ {[%clk 0:00:40]}  Rxf8 {[%clk 0:00:01]} 31. Qd5+ {[%clk 0:00:40]} 1-0


[Site "https://www.chess.com"]